bitfinex/quotes_ETHUSD_20250605
["timestamp","ask_amount","ask_price","bid_price","bid_amount"]
[1749165901261,5.69716639,2422.6,2422.5,20.12796697]
[1749165901670,5.31169338,2422.6,2422.5,20.12796697]
[1749165901842,5.6973144,2422.6,2422.5,20.12796697]
[1749165902039,5.31169338,2422.6,2422.5,20.12796697]
[1749165902766,5.69709502,2422.6,2422.5,20.12796697]
[1749165903262,8.39764512,2422.6,2422.5,20.12796697]
[1749165903457,0.98524348,2422.6,2422.5,20.12796697]
[1749165903769,7.026,2422.6,2422.5,20.12796697]
[1749165903984,10.374,2422.8,2422.7,4.1276262]
[1749165904139,2.474,2423.2,2423.1,4.12694482]
[1749165904344,12.3426739,2423.2,2423.1,4.12694482]
[1749165904552,14.0132198,2423.2,2423.1,4.12694482]
[1749165904751,6.75366081,2423.2,2423.1,4.12694482]
[1749165904950,12.11211491,2423.2,2423.1,4.12694482]
[1749165905153,10.49107836,2423.2,2423.1,20.12694482]
[1749165905375,10.87702533,2423.2,2423.1,20.12694482]
[1749165905683,10.87503619,2423.2,2423.1,20.12694482]
[1749165905982,10.8749364,2423.2,2423.1,20.12694482]
[1749165906184,10.87481366,2423.2,2423.1,20.12694482]
[1749165906574,12.38102008,2423.2,2423.1,16.0]
[1749165906874,13.61611803,2423.2,2423.1,20.12694482]
[1749165907072,13.84754411,2423.2,2423.1,16.0]
[1749165907264,13.61608701,2423.2,2423.1,20.12694482]
[1749165907464,13.46180811,2423.2,2423.1,20.12694482]
[1749165907660,13.16243538,2423.2,2422.7,4.12755119]
[1749165907851,2.474,2422.7,2422.5,4.12783227]
[1749165908051,8.40281665,2422.6,2422.5,20.12783227]
[1749165908248,11.67921665,2422.6,2422.5,16.0]
[1749165908484,13.75577261,2422.6,2422.5,20.12796697]
[1749165908786,14.14142021,2422.6,2422.5,20.12796697]
[1749165908983,13.75577261,2422.6,2422.5,16.0]
[1749165909187,14.14141281,2422.6,2422.4,4.12805976]
[1749165909386,3.46207836,2422.5,2422.4,4.12805976]
[1749165909588,3.84771231,2422.5,2422.4,20.12805976]
[1749165909786,3.84779005,2422.5,2422.4,20.12805976]
[1749165910358,3.46207836,2422.5,2422.4,20.12805976]
[1749165911166,3.84765717,2422.5,2422.4,20.12805976]
[1749165911891,3.84765428,2422.5,2422.4,20.12805976]
[1749165912251,3.8476771,2422.5,2422.4,20.12805976]
[1749165912590,3.46207836,2422.5,2422.4,20.12805976]
[1749165912798,3.84766593,2422.5,2422.4,20.12805976]
[1749165913289,3.84768216,2422.5,2422.4,20.12805976]
[1749165913452,3.84768675,2422.5,2422.4,20.12805976]
[1749165913654,2.474,2422.5,2422.4,20.12805976]
[1749165914074,3.46100903,2422.5,2422.4,20.12805976]
[1749165914276,3.84659437,2422.5,2422.4,20.12805976]
[1749165914795,3.46100903,2422.5,2422.4,20.12805976]
[1749165915088,3.84661313,2422.5,2422.4,20.12805976]
[1749165915390,3.84661107,2422.5,2422.4,20.12805976]
[1749165915590,4.93415983,2422.5,2422.4,20.12805976]
[1749165915803,4.93415971,2422.5,2422.4,20.12805976]
[1749165916006,4.54854062,2422.5,2422.4,20.12805976]
[1749165916177,4.93410043,2422.5,2422.4,20.12805976]
[1749165916857,4.54854062,2422.5,2422.4,20.12805976]
[1749165917056,4.93428111,2422.5,2422.4,20.12805976]
[1749165917293,4.54854062,2422.5,2422.4,20.12805976]
[1749165917683,4.93419089,2422.5,2422.4,20.12805976]
[1749165917856,4.93414238,2422.5,2422.4,20.12805976]
[1749165918295,4.93404607,2422.5,2422.4,20.12805976]
[1749165918483,4.93401735,2422.5,2422.4,20.12805976]
[1749165918792,4.93402155,2422.5,2422.4,20.12805976]
[1749165918964,4.93402069,2422.5,2422.4,20.12805976]
[1749165919161,4.93402057,2422.5,2422.4,20.12805976]
[1749165919396,3.84645926,2422.5,2422.4,20.12805976]
[1749165919825,7.9,2422.8,2422.6,4.12779658]
[1749165920012,7.9,2422.8,2422.7,20.1276262]
[1749165920337,0.98714509,2423.1,2423.0,4.12711514]
[1749165920509,9.36509321,2423.5,2423.4,4.12643393]
[1749165920711,12.41911288,2423.5,2423.3,4.12652356]
[1749165920910,3.84675171,2423.4,2423.3,20.12652356]
[1749165921122,10.84775611,2423.4,2423.3,20.12652356]
[1749165922016,10.84734988,2423.4,2423.3,20.12652356]
[1749165922339,10.84739542,2423.4,2423.3,20.12652356]
[1749165922540,10.46202216,2423.4,2423.3,20.12652356]
[1749165922842,10.84740944,2423.4,2423.3,20.12652356]
[1749165923220,7.9,2423.5,2423.4,4.12643393]
[1749165923426,14.895,2423.5,2423.4,4.12643393]
[1749165924654,1.37142986,2423.7,2423.6,4.12609341]
[1749165924863,6.992,2423.7,2423.6,4.12596015]
[1749165925256,7.6912,2423.7,2423.6,4.12596015]
[1749165925561,8.07611691,2423.7,2423.6,4.12596015]
[1749165925856,6.992,2423.7,2423.6,4.12596015]
[1749165926219,2.474,2424.0,2423.6,4.12596015]
[1749165926220,0.98540697,2423.9,2423.8,4.12575294]
[1749165926420,8.37203796,2423.9,2423.8,4.12575294]
[1749165926623,1.37003796,2423.9,2423.8,4.12575294]
[1749165926889,0.98540697,2424.0,2423.9,20.12558273]
[1749165927030,7.98440697,2424.0,2423.9,20.12558273]
[1749165927361,2.69069971,2424.5,2423.9,16.0]
[1749165927362,0.8178,2424.5,2423.9,16.0]
[1749165927563,9.59499352,2424.4,2424.2,4.12498385]
[1749165927747,10.70001621,2424.4,2424.3,4.12490203]
[1749165927948,11.68426186,2424.4,2424.3,4.12490203]
[1749165928149,12.06584443,2424.4,2424.0,4.12540475]
[1749165928360,12.06584443,2424.4,2423.5,0.6183]
[1749165928361,4.74661009,2424.3,2424.2,4.12507218]
[1749165928669,9.65468996,2424.3,2424.2,4.12507218]
[1749165928959,8.67046722,2424.3,2424.2,20.12507218]
[1749165929168,10.78024565,2424.4,2424.3,4.12490203]
[1749165929371,9.796,2424.4,2424.3,20.12490203]
[1749165929861,16.796,2424.4,2424.3,20.12490203]
[1749165930063,8.895,2424.4,2424.3,20.12490203]
[1749165930264,9.90387589,2424.8,2424.7,4.12422155]
[1749165930464,17.42338759,2424.8,2424.7,4.12422155]
[1749165930759,17.80702193,2424.8,2424.7,4.12422155]
[1749165930968,0.38363434,2424.8,2424.7,4.12422155]
[1749165931130,6.995,2424.8,2424.7,4.12422155]
[1749165931945,3.244,2424.9,2424.8,4.12405146]
[1749165932243,10.466,2425.1,2425.0,4.12371134]
[1749165932587,1.896,2425.1,2425.0,20.12371134]
[1749165932731,7.8,2425.4,2425.3,16.0]
[1749165932931,2.44579004,2425.8,2425.5,4.12272342]
[1749165932932,0.77,2425.8,2425.5,4.12272342]
[1749165933248,7.0,2425.7,2425.5,4.12272342]
[1749165933725,1.1524932,2425.8,2425.7,4.12252133]
[1749165933924,1.896,2426.0,2425.9,4.12218145]
[1749165934468,8.897,2426.0,2425.9,4.12218145]
[1749165934669,8.897,2426.0,2425.6,4.1225552]
[1749165934871,0.96572,2425.9,2425.7,20.12251499]
[1749165935361,0.96572,2425.9,2425.7,16.0]
[1749165935866,0.96572,2425.9,2425.6,4.12263664]
[1749165936040,8.76572,2425.9,2425.6,4.12263664]
[1749165936241,8.76572,2425.9,2425.7,4.12249728]
[1749165936571,8.76572,2425.9,2425.8,4.12235138]
[1749165936771,7.8,2425.9,2425.8,4.12235138]
[1749165936941,1.896,2426.0,2425.9,4.12218145]
[1749165937135,8.897,2426.0,2425.9,4.12218145]
[1749165937759,8.896,2426.0,2425.4,0.6183]
[1749165937959,0.7726,2425.9,2425.8,20.12223639]
[1749165938161,0.7726,2425.9,2425.0,16.0]
[1749165938366,0.7726,2425.9,2425.8,16.0]
[1749165938576,1.39081176,2425.9,2425.7,4.12244843]
[1749165938774,1.39081176,2425.9,2425.6,20.12263641]
[1749165939295,1.39081176,2425.9,2425.7,4.12250798]
[1749165939757,1.39081176,2425.9,2425.0,0.6183]
[1749165939758,1.39081176,2425.9,2425.6,16.0]
[1749165939941,0.55,2425.7,2425.2,4.12321465]
[1749165940142,0.55,2425.7,2425.1,4.12354129]
[1749165940143,3.024,2425.5,2425.1,4.12353183]
[1749165940371,5.45296,2425.4,2424.4,0.6183]
[1749165940587,3.8366,2425.2,2424.4,0.6183]
[1749165940739,1.3626,2425.2,2424.2,4.74333199]
[1749165940944,1.3626,2425.2,2424.2,4.74327388]
[1749165940945,3.8366,2425.2,2424.2,4.74327388]
[1749165941244,1.61686,2425.1,2424.2,16.6183]
[1749165941462,10.824,2425.0,2424.3,4.12474069]
[1749165941786,0.8025,2424.8,2424.4,4.12461504]
[1749165941992,10.4975,2424.8,2424.2,4.12504153]
[1749165942209,10.4975,2424.8,2423.5,4.12624351]
[1749165942210,3.024,2424.5,2423.8,4.12572984]
[1749165942413,3.024,2424.5,2422.8,15.45642805]
[1749165942414,0.38101648,2424.7,2424.6,4.12439165]
[1749165942705,7.052,2424.7,2424.3,1.14944841]
[1749165943004,7.052,2424.7,2424.6,4.12439165]
[1749165943567,2.474,2425.2,2425.1,4.1234945]
[1749165943917,9.533,2425.2,2425.1,4.1234945]
[1749165944809,9.533,2425.2,2425.0,16.0]
[1749165945024,9.533,2425.2,2425.0,4.12371134]
[1749165945171,9.533,2425.2,2425.1,4.12354129]
[1749165946473,1.895,2425.5,2425.4,4.12303125]
[1749165946709,9.529,2425.5,2425.4,4.12303125]
[1749165946882,7.055,2425.5,2425.4,4.12303125]
[1749165947088,2.7031,2426.0,2425.5,16.0]
[1749165947404,7.057,2425.9,2425.8,4.12235138]
[1749165947592,5.1771,2426.0,2425.9,4.12218145]
[1749165947797,12.2321,2426.0,2425.0,16.6183]
[1749165947996,2.474,2425.8,2425.6,4.12259144]
[1749165948194,2.474,2425.8,2425.7,4.12252133]
[1749165950075,2.85596694,2425.8,2425.7,4.12252133]
[1749165950302,2.85593702,2425.8,2425.7,4.12252133]
[1749165950508,3.83085395,2425.8,2425.5,4.12269561]
[1749165950707,3.83085395,2425.8,2425.4,4.12300142]
[1749165950708,3.2307,2425.5,2425.4,16.0]
[1749165950882,10.2807,2425.5,2425.4,4.12303125]
[1749165951077,13.20936314,2425.5,2425.3,4.12310006]
[1749165951422,3.83066583,2425.4,2425.3,4.12310006]
[1749165951582,3.44891693,2425.4,2425.1,20.12338157]
[1749165951932,1.35695287,2425.3,2425.1,20.12338157]
[1749165952080,2.474,2425.4,2425.1,20.12338157]
[1749165952081,0.38203594,2425.2,2425.1,20.12338157]
[1749165952281,0.97800263,2425.3,2425.2,4.12337126]
[1749165952475,8.40411178,2425.3,2425.2,4.12337126]
[1749165952702,8.40411178,2425.3,2424.3,1.931]
[1749165952703,13.01649837,2425.3,2424.4,0.6183]
[1749165952907,2.474,2425.1,2425.0,4.12360345]
[1749165953105,1.35997502,2425.1,2425.0,4.12360345]
[1749165953303,7.43039597,2425.1,2425.0,4.74190345]
[1749165953622,7.048,2425.1,2425.0,20.74190345]
[1749165954317,7.048,2425.1,2425.0,20.12360345]
[1749165954617,8.40946496,2425.1,2425.0,4.12360345]
[1749165954817,8.40967128,2425.1,2425.0,4.12360345]
[1749165955114,1.36170129,2425.1,2425.0,4.12360345]
[1749165955313,8.02706194,2425.1,2425.0,4.12360345]
[1749165955514,8.40975582,2425.1,2425.0,20.12360345]
[1749165955719,8.02706194,2425.1,2425.0,20.12360345]
[1749165956481,1.36226179,2425.1,2425.0,20.74190345]
[1749165956679,7.048,2425.1,2425.0,20.74190345]
[1749165957083,8.02922602,2425.1,2425.0,20.74190345]
[1749165957379,8.02932197,2425.1,2425.0,20.74190345]
[1749165957582,8.41253701,2425.1,2425.0,20.74190345]
[1749165958788,8.79600637,2425.1,2425.0,20.74190345]
[1749165958989,8.41253701,2425.1,2425.0,20.74190345]
[1749165959202,8.79600496,2425.1,2425.0,20.74190345]
[1749165959627,8.79600496,2425.1,2425.0,20.12360345]
[1749165959924,8.79620484,2425.1,2425.0,20.12360345]
[1749165960217,8.7961803,2425.1,2425.0,20.12360345]
[1749165960422,8.79621293,2425.1,2425.0,20.12360345]
[1749165960714,8.79621767,2425.1,2425.0,20.12360345]
[1749165960932,8.41253701,2425.1,2425.0,20.12360345]
[1749165961085,8.79620563,2425.1,2425.0,20.12360345]
[1749165961288,8.79637431,2425.1,2425.0,20.12360345]
[1749165961488,1.74837431,2425.1,2425.0,20.12360345]
[1749165961710,8.7844845,2425.1,2425.0,20.12360345]
[1749165962022,1.74851491,2425.1,2425.0,21.29190345]
[1749165962223,0.38321504,2425.1,2425.0,27.8343315]
[1749165962408,1.2336496,2426.1,2425.9,20.12218145]
[1749165962592,8.02947129,2426.0,2425.9,20.12218145]
[1749165962789,0.98347129,2426.0,2425.9,20.12218145]
[1749165963122,1.61794548,2426.7,2426.4,4.12133201]
[1749165963422,7.057,2426.6,2426.5,20.12116216]
[1749165964135,0.38429588,2426.7,2426.6,4.12099233]
[1749165964430,9.1336496,2427.1,2427.0,4.12031314]
[1749165964604,17.55691302,2427.1,2427.0,4.12031314]
[1749165964941,10.49991302,2427.1,2426.3,16.6183]
[1749165965118,0.8038,2426.9,2425.7,0.6183]
[1749165965292,1.2336496,2426.5,2425.9,4.12207384]
[1749165965497,1.2336496,2426.5,2426.3,4.12150187]
[1749165965498,8.43814525,2426.4,2426.3,4.12150187]
[1749165965797,8.0539493,2426.4,2426.3,4.12150187]
[1749165966428,9.67172913,2426.4,2426.3,4.12150187]
[1749165966603,9.67164291,2426.4,2426.3,4.12150187]
[1749165966802,9.67164291,2426.4,2426.2,4.1216343]
[1749165967015,1.36590425,2426.3,2426.2,20.12167175]
[1749165967329,1.36556894,2426.3,2426.2,20.12167175]
[1749165967496,0.9819493,2426.3,2426.2,20.12167175]
[1749165967827,1.36559246,2426.3,2426.2,20.12167175]
[1749165968004,0.9819493,2426.3,2426.2,20.12167175]
[1749165968212,1.2336496,2426.7,2426.5,4.12116216]
[1749165968405,2.69213578,2427.0,2426.7,20.12082251]
[1749165968406,0.38377085,2426.8,2426.7,20.12082251]
[1749165968614,1.36453089,2426.8,2426.7,20.12082251]
[1749165968813,7.9,2427.1,2426.9,4.12046645]
[1749165969011,7.9,2427.1,2426.7,20.12082251]
[1749165969012,8.05128811,2427.0,2426.7,4.12082251]
[1749165969216,7.9,2427.2,2427.0,16.0]
[1749165969535,8.05031331,2427.1,2427.0,20.12031314]
[1749165969754,8.05031331,2427.1,2427.0,16.0]
[1749165969927,8.43203872,2427.1,2427.0,16.0]
[1749165970122,8.43203872,2427.1,2427.0,20.12031314]
[1749165970517,8.04831331,2427.1,2427.0,20.12031314]
[1749165971335,8.04631331,2427.1,2427.0,16.0]
[1749165971535,8.04631331,2427.1,2427.0,20.12031314]
[1749165971838,8.04431331,2427.1,2427.0,20.12031314]
[1749165972612,8.04131331,2427.1,2427.0,20.12031314]
[1749165972809,8.04031331,2427.1,2427.0,20.12031314]
[1749165973631,7.99031331,2427.1,2427.0,20.12031314]
[1749165974215,0.93031331,2427.1,2427.0,20.12031314]
[1749165974423,7.43837555,2427.1,2427.0,20.12031314]
[1749165974717,7.9,2427.2,2427.1,20.12014338]
[1749165974914,15.33538475,2427.2,2427.1,20.12014338]
[1749165975352,15.33538047,2427.2,2427.1,20.12014338]
[1749165975944,15.33496259,2427.2,2427.1,20.12014338]
[1749165976356,14.953,2427.2,2427.1,20.12014338]
[1749165976938,15.33500562,2427.2,2427.1,20.12014338]
[1749165977158,15.33500558,2427.2,2427.1,20.12014338]
[1749165977675,14.953,2427.2,2427.1,20.12014338]
[1749165979644,1.2336496,2427.7,2427.4,16.0]
[1749165979840,9.829,2427.8,2427.4,16.0]
[1749165979841,7.036,2427.6,2427.5,20.11946446]
[1749165980157,9.829,2427.8,2427.6,4.11925248]
[1749165980360,7.035,2427.7,2427.6,4.11925248]
[1749165981853,6.985,2427.7,2427.6,4.11925248]
[1749165982058,7.029,2427.7,2427.5,4.11944018]
[1749165982267,7.029,2427.7,2427.6,4.1191481]
[1749165982936,7.41035113,2427.7,2427.6,4.1191481]
[1749165983131,11.30645085,2427.8,2427.5,4.11942609]
[1749165983331,9.499,2427.7,2427.6,4.11926031]
[1749165983740,9.499,2427.7,2427.5,20.11938386]
[1749165984160,9.499,2427.7,2427.6,4.11929477]
[1749165985852,9.88080663,2427.7,2427.6,4.11929477]
[1749165986050,12.08139036,2427.7,2427.5,4.1193891]
[1749165986367,2.475,2427.5,2426.6,0.6183]
[1749165986546,2.475,2427.3,2427.0,4.12015777]
[1749165986867,2.475,2427.1,2427.0,20.12015777]
[1749165988431,1.2336496,2427.6,2427.5,4.11946446]
[1749165988751,0.98120283,2427.9,2427.8,20.11895543]
[1749165988950,7.05,2427.9,2427.8,20.11895543]
[1749165989776,2.475,2428.2,2428.1,4.11844652]
[1749165989965,3.83961244,2428.2,2428.1,20.11844652]
[1749165990263,8.02805956,2428.2,2428.1,20.11844652]
[1749165990427,7.046,2428.2,2428.1,20.11844652]
[1749165990631,1.923,2428.3,2428.2,20.11827691]
[1749165990864,0.9815741,2428.3,2428.2,20.11827691]
[1749165991072,2.475,2428.4,2428.3,4.11810731]
[1749165991272,10.50128736,2428.4,2428.3,4.11810731]
[1749165991638,11.26614553,2428.4,2428.3,4.11810731]
[1749165992067,11.26807185,2428.4,2428.3,4.11810731]
[1749165992269,11.26807895,2428.4,2428.3,4.11810731]
[1749165992470,3.83968342,2428.4,2428.3,4.11810731]
[1749165992670,10.49428736,2428.4,2428.3,4.11810731]
[1749165992871,11.26110926,2428.4,2428.3,4.11810731]
[1749165993064,3.45628736,2428.4,2428.3,4.11810731]
[1749165993274,11.26312914,2428.4,2428.3,4.11810731]
[1749165993475,1.74812914,2428.4,2428.3,20.11810731]
[1749165993779,0.38342376,2428.6,2428.5,4.11776816]
[1749165993983,1.36498677,2428.6,2428.5,20.11776816]
[1749165994169,1.923,2428.8,2428.7,4.11742907]
[1749165994375,0.7991,2428.5,2427.3,0.6183]
[1749165994555,4.50029815,2427.8,2427.0,0.6183]
[1749165994753,11.71423359,2427.7,2427.3,4.11965072]
[1749165995078,2.97391784,2427.6,2427.3,16.0]
[1749165995262,1.74771969,2427.5,2427.2,4.11989872]
[1749165995460,10.54294301,2427.4,2426.8,1.923]
[1749165995666,2.97423425,2427.3,2427.1,4.1199904]
[1749165995850,1.36496896,2427.2,2427.1,4.11998146]
[1749165996052,0.98194301,2427.2,2427.1,4.11998146]
[1749165997061,1.7480096,2427.2,2427.1,4.11998146]
[1749165997362,1.74893884,2427.2,2427.1,4.11998146]
[1749165997687,1.36553663,2427.2,2427.1,4.11998146]
[1749165997998,0.98194301,2427.2,2427.1,4.11998146]
[1749165999111,6.07361103,2427.2,2426.1,0.6183]
[1749165999404,6.07361103,2427.2,2426.0,4.12200298]
[1749165999405,1.97830739,2426.3,2426.0,4.12200298]
[1749165999579,8.06494301,2426.2,2426.0,4.12200298]
[1749165999793,7.083,2426.2,2426.1,4.12184163]
[1749165999952,8.44799064,2426.2,2426.1,4.12184163]
[1749166000348,8.83138816,2426.2,2426.1,4.12184163]
[1749166000665,8.83137444,2426.2,2426.0,20.12194414]
[1749166000985,1.36497692,2426.1,2426.0,20.12194414]
[1749166001190,0.98159578,2426.1,2426.0,20.12194414]
[1749166001561,1.36438091,2426.1,2426.0,20.12194414]
[1749166001782,0.98159578,2426.1,2426.0,20.12194414]
[1749166002318,1.36440292,2426.1,2426.0,20.12194414]
[1749166002476,0.38280714,2426.1,2426.0,20.12194414]
[1749166002678,8.44582048,2426.2,2426.1,4.12184163]
[1749166002883,7.083,2426.2,2426.1,4.12184163]
[1749166005884,1.36221826,2426.5,2426.4,4.12133201]
[1749166006103,0.8141,2426.6,2426.5,4.12116216]
[1749166006104,0.98001334,2426.6,2426.5,4.12116216]
[1749166006272,7.067,2426.6,2426.5,4.12116216]
[1749166006766,0.98001334,2426.9,2426.2,0.6183]
[1749166006967,7.07,2426.8,2426.6,4.12098391]
[1749166007363,7.07,2426.8,2426.7,4.12082251]
[1749166008170,7.069,2426.8,2426.6,20.12097343]
[1749166008504,7.069,2426.8,2426.7,4.1207352]
[1749166010194,2.12319453,2427.2,2427.1,4.12014338]
[1749166010396,9.07640429,2427.2,2427.1,4.12014338]
[1749166010582,16.14340429,2427.2,2427.1,4.12014338]
[1749166010779,15.7261,2427.2,2427.1,4.12014338]
[1749166011013,7.9,2427.2,2427.1,4.12014338]
[1749166011214,7.064,2427.2,2426.7,0.6183]
[1749166011417,7.064,2427.2,2426.8,16.0]
[1749166011717,7.064,2427.2,2427.1,4.12014338]
[1749166011869,7.9,2427.3,2427.2,4.11997363]
[1749166012071,14.961,2427.3,2427.2,4.11997363]
[1749166012291,14.961,2427.3,2427.1,4.12007036]
[1749166012812,14.961,2427.3,2427.2,4.11997363]
[1749166013412,2.475,2427.2,2427.0,4.12024052]
[1749166013648,2.475,2427.2,2427.1,4.12014338]
[1749166014449,2.475,2427.2,2427.0,4.12024853]
[1749166014650,2.475,2427.2,2426.9,4.12045237]
[1749166014651,2.85743941,2427.2,2427.1,4.12014338]
[1749166014862,2.475,2427.2,2427.1,4.12014338]
[1749166017554,11.30158549,2427.2,2426.9,4.12038168]
[1749166017702,12.66400231,2427.2,2426.9,4.12038168]
[1749166017906,13.046417,2427.2,2426.9,4.12038168]
[1749166018134,13.04640498,2427.2,2426.9,4.12038168]
[1749166018331,13.04639129,2427.2,2426.9,4.12038168]
[1749166018536,12.66399084,2427.2,2426.9,4.12038168]
[1749166018739,12.28159883,2427.2,2426.9,4.12038168]
[1749166019326,13.04638096,2427.2,2426.9,4.12038168]
[1749166019639,12.66399028,2427.2,2426.9,4.12038168]
[1749166019845,13.04684683,2427.2,2426.9,4.12038168]
[1749166020010,3.83763558,2427.2,2427.1,4.12014338]
[1749166020217,7.9,2427.3,2427.2,4.11997363]
[1749166020412,9.506,2427.3,2427.1,4.12010384]
[1749166020720,13.47378369,2427.3,2426.8,4.12055293]
[1749166020936,13.47378346,2427.3,2427.0,4.12028548]
[1749166021112,3.3057,2427.0,2426.2,4.12158002]
[1749166021308,9.93945061,2426.8,2426.5,4.12106702]
[1749166021506,14.43031366,2426.8,2426.6,4.12097746]
[1749166021731,0.38263413,2426.7,2426.6,4.12097746]
[1749166021953,2.85794747,2426.7,2426.6,4.12097746]
[1749166022127,2.85798123,2426.7,2426.6,4.12097746]
[1749166022321,2.475,2426.7,2426.5,16.0]
[1749166022523,2.475,2426.7,2426.6,4.12099233]
[1749166022717,9.90098968,2426.7,2426.6,4.12099233]
[1749166022918,9.518,2426.7,2426.6,4.12099233]
[1749166023248,9.9009923,2426.7,2426.5,20.12113016]
[1749166023450,10.88082833,2426.7,2426.5,20.12113016]
[1749166023750,9.518,2426.7,2426.6,4.12099233]
[1749166023936,9.90232869,2426.7,2426.6,4.12099233]
[1749166024251,9.518,2426.7,2426.6,4.12099233]
[1749166024439,10.49785658,2426.7,2426.6,4.12099233]
[1749166024638,11.26652924,2426.7,2426.6,4.12099233]
[1749166024829,10.88224387,2426.7,2426.6,4.12099233]
[1749166025019,11.26669528,2426.7,2426.6,4.12099233]
[1749166025727,10.88224387,2426.7,2426.5,20.12111578]
[1749166025930,10.88224387,2426.7,2426.5,16.0]
[1749166025931,12.48834798,2426.6,2426.5,16.0]
[1749166026228,12.48834798,2426.6,2426.4,4.12128364]
[1749166026434,4.22399737,2426.5,2426.4,20.12128364]
[1749166026627,5.44881809,2426.5,2426.2,4.12154371]
[1749166026920,2.475,2426.3,2426.2,4.12154371]
[1749166027121,3.45485658,2426.3,2426.2,4.12154371]
[1749166027369,11.30385416,2426.3,2426.2,4.12154371]
[1749166027517,10.91930719,2426.3,2426.2,4.12154371]
[1749166027711,11.68847301,2426.3,2426.2,4.12154371]
[1749166027916,11.30390569,2426.3,2426.2,4.12154371]
[1749166028118,11.68850419,2426.3,2426.2,4.12154371]
[1749166028343,10.91930719,2426.3,2426.2,4.12154371]
[1749166028547,11.68849395,2426.3,2426.2,4.12154371]
[1749166028754,10.91930719,2426.3,2426.2,4.12154371]
[1749166029132,0.97985658,2426.3,2426.2,20.12154371]
[1749166029314,1.36434887,2426.3,2426.2,20.12154371]
[1749166029521,1.23048758,2426.7,2426.6,4.12099233]
[1749166029834,8.77274565,2426.7,2426.6,4.12099233]
[1749166030228,8.3881946,2426.7,2426.6,4.12099233]
[1749166030458,8.00375434,2426.7,2426.6,4.12099233]
[1749166030624,8.38815838,2426.7,2426.6,4.12099233]
[1749166030824,0.98475434,2426.7,2426.6,4.12099233]
[1749166031038,8.38635162,2426.7,2426.6,20.12099233]
[1749166031366,8.77094701,2426.7,2426.6,20.12099233]
[1749166031519,8.77095206,2426.7,2426.6,20.12099233]
[1749166031720,8.7709066,2426.7,2426.6,20.12099233]
[1749166032048,8.38641963,2426.7,2426.6,20.12099233]
[1749166032262,19.90689567,2426.7,2426.4,4.12124346]
[1749166032479,3.70648575,2426.5,2426.4,20.12124346]
[1749166032681,5.07589951,2426.5,2426.4,20.12124346]
[1749166032882,4.69124009,2426.5,2426.4,20.12124346]
[1749166033101,4.22951477,2426.5,2426.4,20.12124346]
[1749166033398,3.84463462,2426.5,2426.4,20.12124346]
[1749166033602,5.46100381,2426.5,2426.4,20.12124346]
[1749166033754,5.46100381,2426.5,2425.8,1.943]
[1749166033755,6.18371664,2426.5,2426.3,16.0]
[1749166033960,10.47675434,2426.4,2426.3,4.12150187]
[1749166034175,11.70817625,2426.4,2426.3,20.12150187]
[1749166034374,12.09298743,2426.4,2426.3,20.12150187]
[1749166034700,12.09296119,2426.4,2426.3,20.12150187]
[1749166034914,12.0929691,2426.4,2426.3,20.12150187]
[1749166035202,12.47776195,2426.4,2426.3,20.12150187]
[1749166035357,12.09298094,2426.4,2426.3,20.12150187]
[1749166035689,12.84948078,2426.4,2424.5,1.238485]
[1749166035914,12.84948078,2426.4,2423.8,0.2]
[1749166035915,2.475,2425.6,2425.0,0.6183]
[1749166036058,10.69595061,2425.2,2424.8,4.1239522]
[1749166036259,10.69595061,2425.2,2424.7,4.12420272]
[1749166036260,10.48475434,2425.1,2424.7,4.12420272]
[1749166036586,1.75390896,2425.0,2424.9,16.0]
[1749166036753,4.22890896,2425.0,2423.7,0.6183]
[1749166036953,2.475,2424.8,2424.2,4.12491847]
[1749166037192,2.475,2424.4,2424.3,4.12490203]
[1749166037499,10.48764253,2424.4,2424.3,20.12490203]
[1749166037701,9.505,2424.4,2424.3,20.12490203]
[1749166037857,7.03,2424.4,2424.3,20.12490203]
[1749166038062,7.029,2424.4,2424.3,20.12490203]
[1749166040056,2.14378427,2425.1,2424.5,16.0]
[1749166040352,7.031,2425.0,2424.9,20.12388139]
[1749166041139,1.18981822,2425.4,2425.3,4.12320125]
[1749166041339,8.22181822,2425.4,2425.2,4.12331093]
[1749166042214,8.22181822,2425.4,2425.2,4.12336624]
[1749166042409,8.22181822,2425.4,2424.9,16.0]
[1749166042649,16.9059056,2425.4,2424.9,16.0]
[1749166042853,0.98074951,2425.3,2424.8,16.0]
[1749166043020,1.36204712,2425.3,2424.8,20.12403167]
[1749166043222,1.36204706,2425.3,2425.0,4.12370953]
[1749166043560,1.85186251,2425.2,2425.0,4.12370953]
[1749166043769,7.032,2425.1,2425.0,4.12370953]
[1749166044266,0.38130776,2425.3,2425.2,4.12337126]
[1749166044474,8.949,2425.3,2425.2,4.12337126]
[1749166044671,2.34252155,2425.4,2425.1,4.12346039]
[1749166044869,7.031,2425.3,2425.0,4.12362251]
[1749166045236,7.031,2425.3,2424.8,20.12389554]
[1749166045237,7.031,2425.3,2425.1,4.12350314]
[1749166045442,7.031,2425.3,2424.8,4.12399439]
[1749166045662,8.01174951,2425.3,2424.9,4.12380611]
[1749166045861,8.01174951,2425.3,2423.9,4.12546726]
[1749166045862,16.8224,2424.7,2423.5,4.12626366]
[1749166046072,7.77224783,2424.5,2423.9,4.12548419]
[1749166046239,0.98074951,2424.4,2423.6,16.0]
[1749166046440,8.08474951,2424.3,2423.9,4.1255172]
[1749166046767,0.8224,2424.2,2423.9,4.1255172]
[1749166046927,0.8224,2424.2,2424.1,4.12524235]
[1749166047261,1.921,2424.4,2424.3,4.12479043]
[1749166047476,9.021,2424.4,2424.1,4.12524235]
[1749166048358,2.475,2424.3,2424.2,4.1250377]
[1749166049456,11.1974,2424.6,2424.5,4.12456176]
[1749166049774,17.471,2424.6,2424.5,4.12456176]
[1749166050265,7.9,2424.6,2424.5,4.12456176]
[1749166050467,12.296,2424.8,2424.7,4.12422155]
[1749166050642,20.6316,2424.8,2424.5,4.12456176]
[1749166050845,20.6316,2424.8,2424.4,20.12469965]
[1749166051457,2.475,2424.6,2424.4,4.12463155]
[1749166051787,7.104,2424.5,2424.4,20.12463155]
[1749166053193,10.61344,2424.5,2423.7,0.6183]
[1749166053499,10.61344,2424.5,2424.2,20.12495737]
[1749166054573,10.61344,2424.5,2424.3,4.12487437]
[1749166055092,9.571,2424.4,2424.3,4.12487437]
[1749166058565,2.475,2424.4,2424.3,4.12487437]
[1749166058896,9.557,2424.4,2424.3,4.12487437]